bitfinex/quotes_ETHUSD_20240811
["timestamp","ask_amount","ask_price","bid_price","bid_amount"]
[1723403118584,12.57336,2639.9,2639.3,3.0]
[1723403118792,9.92166,2639.9,2639.3,3.0]
[1723403119499,2.65188,2639.7,2639.3,3.0]
[1723403119806,2.65198,2639.6,2639.1,3.0]
[1723403122110,2.65198,2639.6,2638.7,0.5934281]
[1723403122111,2.65231,2639.2,2638.7,0.5934281]
[1723403122277,2.65238,2639.2,2638.5,2.4881]
[1723403122465,5.36428,2639.3,2638.7,2.65272]
[1723403122771,2.65235,2639.2,2638.7,2.65272]
[1723403123175,2.65235,2639.2,2638.5,5.38986]
[1723403123373,2.65245,2639.1,2638.5,5.38986]
[1723403123673,2.65245,2639.1,2638.6,3.0]
[1723403124611,2.65281,2638.8,2638.2,2.65325]
[1723403124904,0.80168,2639.1,2638.1,2.4881]
[1723403124905,2.65299,2638.6,2638.1,2.4881]
[1723403125110,2.65299,2638.6,2637.9,0.59355455]
[1723403125413,2.65339,2638.2,2637.9,0.59355455]
[1723403125583,2.712,2638.4,2637.9,0.59355455]
[1723403125787,2.65371,2637.9,2637.2,2.65427]
[1723403126011,2.65334,2638.2,2637.4,2.65405]
[1723403126220,2.65345,2638.1,2637.4,5.30809]
[1723403126517,2.65355,2638.0,2637.3,0.59378862]
[1723403126717,2.65359,2638.0,2637.3,0.91859348]
[1723403126877,2.65345,2638.1,2637.3,2.97893486]
[1723403127079,2.65364,2637.9,2637.3,2.97893486]
[1723403127295,5.30733,2637.9,2637.3,2.97893486]
[1723403127509,2.65364,2637.9,2637.4,2.65411]
[1723403128171,2.4457,2638.5,2638.0,2.65351]
[1723403128482,2.4457,2638.5,2637.8,2.7294708]
[1723403128483,2.65308,2638.5,2637.8,2.7294708]
[1723403128674,2.65308,2638.5,2637.9,5.65356]
[1723403128891,2.65319,2638.4,2637.9,3.0]
[1723403129215,2.65308,2638.5,2637.9,3.0]
[1723403130090,2.65322,2638.3,2637.9,3.0]
[1723403131444,2.65322,2638.3,2637.7,2.3166]
[1723403131445,2.65322,2638.3,2637.7,7.9704]
[1723403131628,0.06444762,2638.2,2637.8,2.65371]
[1723403131807,0.06444762,2638.2,2637.9,3.0]
[1723403132001,2.65318,2638.4,2637.9,3.0]
[1723403132231,0.06294449,2638.1,2637.9,3.0]
[1723403132436,2.65307,2638.5,2638.0,2.65352]
[1723403132589,2.65307,2638.5,2637.9,3.0]
[1723403132590,0.06286223,2638.0,2637.9,3.0]
[1723403132793,5.36486,2638.7,2638.0,2.65351]
[1723403133135,2.65265,2638.9,2638.0,2.65351]
[1723403133136,7.27,2638.9,2638.2,2.3323]
[1723403133301,7.27,2638.9,2638.6,2.65285]
[1723403133510,2.65252,2639.0,2638.3,5.30631]
[1723403133713,0.2712,2639.2,2638.3,0.80614817]
[1723403133932,2.65291,2638.7,2638.3,3.0]
[1723403134134,2.3245,2639.1,2638.1,3.0]
[1723403134332,2.65288,2638.7,2638.1,2.65336]
[1723403134542,2.653,2638.6,2638.2,3.0]
[1723403134693,2.653,2638.6,2638.1,3.0]
[1723403134893,5.30578,2638.7,2638.1,3.0]
[1723403135095,2.65288,2638.7,2638.1,5.65338]
[1723403135296,2.65288,2638.7,2638.1,5.65334]
[1723403135523,2.65288,2638.7,2638.1,6.80160352]
[1723403135707,2.65288,2638.7,2638.1,9.45496352]
[1723403135922,5.30577,2638.7,2638.1,6.80160352]
[1723403136123,2.65293,2638.6,2638.1,6.80160352]
[1723403136339,2.65266,2638.9,2638.1,6.80160352]
[1723403136545,2.65266,2638.9,2638.2,0.68016035]
[1723403137030,2.65282,2638.7,2638.2,0.68016035]
[1723403138646,2.65266,2638.9,2638.2,0.68016035]
[1723403138647,2.65266,2638.9,2638.3,2.65321]
[1723403139053,7.52957,2639.0,2638.2,0.68016035]
[1723403139361,2.65298,2638.6,2638.0,5.6535]
[1723403139508,2.65288,2638.7,2638.1,2.65334]
[1723403139711,2.65288,2638.7,2638.2,3.0]
[1723403140407,2.65267,2638.9,2638.2,5.65326]
[1723403140753,7.52957,2639.0,2638.3,2.72902126]
[1723403141054,2.65268,2638.9,2638.3,2.65322]
[1723403141214,2.65268,2638.9,2638.3,5.30638]
[1723403141407,2.65268,2638.9,2638.2,3.0]
[1723403141746,2.65284,2638.7,2638.2,3.0]
[1723403142305,0.06093986,2638.6,2638.2,3.0]
[1723403142818,2.65302,2638.5,2638.2,3.0]
[1723403143023,0.06093986,2638.6,2638.1,3.0]
[1723403143219,0.06077539,2638.4,2638.1,3.0]
[1723403143419,0.06085763,2638.5,2638.1,5.65342]
[1723403143718,2.65292,2638.6,2638.1,5.65342]
[1723403143954,2.65313,2638.4,2638.1,3.0]
[1723403144185,2.65313,2638.4,2638.0,3.0]
[1723403144385,0.06069315,2638.3,2638.0,3.0]
[1723403144842,2.65302,2638.5,2638.0,3.0]
[1723403145343,0.06077539,2638.4,2638.0,3.0]
[1723403145979,2.6533,2638.3,2638.0,3.0]
[1723403146181,2.6533,2638.3,2637.8,3.0]
[1723403146481,2.65345,2638.1,2637.6,4.98622]
[1723403146776,0.06044639,2638.0,2637.6,4.98622]
[1723403147473,0.06044639,2638.0,2637.6,7.64009]
[1723403147782,2.65333,2638.2,2637.7,3.0]
[1723403147953,0.06036413,2637.9,2637.7,3.0]
[1723403148156,2.65333,2638.2,2637.7,3.0]
[1723403148365,0.06028186,2637.8,2637.7,3.0]
[1723403148555,2.65345,2638.1,2637.5,5.65401]
[1723403148762,0.06028186,2637.8,2637.5,6.13657567]
[1723403149088,2.65345,2638.1,2637.5,6.13657567]
[1723403149542,0.06044639,2638.0,2637.5,6.13657567]
[1723403149886,2.71403639,2638.0,2637.5,3.48256567]
[1723403150181,2.71403639,2638.0,2637.5,3.0]
[1723403150182,2.71402639,2638.0,2637.5,3.0]
[1723403150339,5.36764639,2638.0,2637.5,3.0]
[1723403151349,2.71402639,2638.0,2637.5,3.0]
[1723403151556,2.65378,2637.8,2637.5,3.0]
[1723403151755,2.65378,2637.8,2637.3,2.65422]
[1723403151943,0.05997363,2637.7,2637.3,2.65422]
[1723403152374,2.65378,2637.8,2637.3,2.65422]
[1723403152684,2.65378,2637.8,2637.2,2.65426]
[1723403152685,0.05974201,2637.6,2637.2,2.65426]
[1723403152984,0.05962367,2637.5,2637.2,2.65426]
[1723403153157,0.05962367,2637.5,2637.3,3.0]
[1723403153355,2.65378,2637.8,2637.3,3.0]
[1723403153545,0.05944278,2637.4,2637.3,3.0]
[1723403153747,9.5494,2637.9,2637.3,3.0]
[1723403154105,0.05944278,2637.4,2637.3,11.528085]
[1723403154247,7.27,2637.9,2637.8,2.65372]
[1723403155983,7.27,2637.9,2637.7,2.65382]
[1723403157385,0.05779643,2637.8,2637.7,2.65382]
[1723403157889,0.05779643,2637.8,2637.7,5.838419]
[1723403158094,7.27,2638.3,2637.9,2.65353]
[1723403158260,2.65313,2638.4,2637.9,2.65353]
[1723403159575,2.65308,2638.5,2637.9,5.30709]
[1723403159755,2.65308,2638.5,2637.9,2.65353]
[1723403159950,5.30616,2638.5,2637.9,2.65353]
[1723403160177,2.65308,2638.5,2637.9,2.65353]
[1723403160392,7.27,2638.6,2638.3,2.65321]
[1723403160605,7.27,2638.6,2638.3,2.65316]
[1723403160753,7.27,2638.6,2638.1,2.65333]
[1723403161489,7.27,2638.6,2638.3,2.6532]
[1723403161791,14.93269,2638.9,2638.3,2.6532]
[1723403161963,9.5494,2639.0,2638.5,2.65295]
[1723403162351,9.718187,2639.0,2638.5,2.65295]
[1723403162654,7.27,2639.0,2638.6,2.65285]
[1723403162789,7.27,2639.0,2638.7,2.65281]
[1723403163101,7.27,2639.0,2638.5,2.65294]
[1723403163465,7.27,2639.0,2638.5,5.3059]
[1723403163803,7.27,2639.0,2638.6,2.65283]
[1723403164375,7.27,2639.0,2638.5,2.65294]
[1723403164690,7.27,2639.0,2638.6,2.65291]
[1723403164886,7.27,2639.0,2638.6,2.65289]
[1723403165262,7.27,2639.0,2638.7,2.65281]
[1723403165705,7.27,2639.0,2638.9,2.65262]
[1723403166006,7.27,2639.4,2639.1,2.65238]
[1723403166602,7.27,2639.4,2639.1,2.65236]
[1723403166805,7.27,2639.4,2639.1,5.30471]
[1723403166964,7.27,2639.4,2639.1,2.65235]
[1723403168303,7.27,2639.4,2639.1,3.4841953]
[1723403169075,7.27,2639.4,2639.2,2.65231]
[1723403169276,7.27,2639.8,2639.3,2.65221]
[1723403169613,2.65151,2640.0,2639.3,2.65221]
[1723403169784,2.65151,2640.0,2639.5,2.652]
[1723403170307,22.20146,2640.1,2639.5,2.652]
[1723403170515,24.652456,2640.1,2639.5,2.652]
[1723403172115,2.65153,2640.0,2639.5,2.652]
[1723403172322,2.70954108,2640.0,2639.5,2.652]
[1723403172669,2.70954108,2640.0,2639.3,2.65221]
[1723403172895,2.65185,2639.7,2639.2,2.65231]
[1723403173154,2.65185,2639.7,2639.3,3.0]
[1723403173269,2.70965249,2639.6,2639.0,2.65245]
[1723403173488,2.70965249,2639.6,2639.1,3.0]
[1723403175898,2.6522,2639.4,2639.1,3.0]
[1723403176105,2.6522,2639.4,2638.8,2.65265]
[1723403176106,2.65217,2639.4,2638.8,2.65265]
[1723403176328,0.05744495,2639.3,2638.9,3.0]
[1723403178112,2.70967495,2639.3,2638.9,3.0]
[1723403178271,2.70967495,2639.3,2638.8,3.0]
[1723403178480,2.65241,2639.2,2638.5,2.65293]
[1723403178808,0.05527195,2639.1,2638.6,5.65286]
[1723403179014,0.05527195,2639.1,2638.6,6.716639]
[1723403179684,0.05527195,2639.1,2638.7,2.6528]
[1723403180409,0.05527195,2639.1,2638.7,2.65274]
[1723403180709,2.6522,2639.4,2638.7,2.65274]
[1723403180916,0.05510598,2639.0,2638.9,5.30523]
[1723403181077,7.27,2639.6,2639.5,2.65201]
[1723403181437,2.65152,2640.0,2639.5,2.65201]
[1723403182172,2.65152,2640.0,2639.3,0.0757667]
[1723403182173,2.65165,2639.9,2639.3,2.65214]
[1723403182717,1.499268,2640.0,2639.4,2.65202]
[1723403183023,9.92146,2640.1,2639.6,2.65185]
[1723403183620,9.92146,2640.1,2639.5,5.30391]
[1723403183909,9.92146,2640.1,2639.5,5.3039]
[1723403184297,2.65152,2640.0,2639.5,2.65195]
[1723403184497,3.0,2640.7,2639.0,2.332]
[1723403184498,7.0409953,2641.5,2640.3,2.332]
[1723403184714,7.0409953,2641.5,2639.7,2.712]
[1723403184715,5.06949,2641.8,2640.9,2.65051]
[1723403184880,5.06944,2641.8,2640.5,2.332]
[1723403185081,5.06944,2641.8,2641.1,5.30064]
[1723403185302,5.06944,2641.8,2641.1,2.65031]
[1723403185532,2.64993,2641.6,2640.9,2.65053]
[1723403185908,2.64993,2641.6,2641.0,2.65044]
[1723403187451,0.0458088,2641.5,2641.1,2.65032]
[1723403187844,3.156754,2641.7,2641.1,2.65032]
[1723403188007,2.69583676,2641.4,2640.9,2.65056]
[1723403188345,3.4725894,2641.6,2640.9,2.65056]
[1723403188545,0.0456447,2641.3,2640.9,2.65056]
[1723403188843,0.04556264,2641.2,2640.9,2.65056]
[1723403189048,0.04556264,2641.2,2640.7,2.65075]
[1723403189353,2.65031,2641.2,2640.5,4.98296]
[1723403189510,2.65031,2641.2,2640.6,3.0]
[1723403189511,0.04548058,2641.1,2640.6,3.0]
[1723403189709,0.04548058,2641.1,2640.8,2.6507]
[1723403190062,0.04548058,2641.1,2640.6,3.0]
[1723403190063,2.64983,2641.7,2640.9,2.2679]
[1723403190362,2.64966,2641.9,2641.1,2.65034]
[1723403190525,2.64971,2641.8,2641.1,2.65033]
[1723403192021,2.64971,2641.8,2641.2,2.65028]
[1723403193145,7.96052355,2642.0,2641.3,2.65019]
[1723403194052,2.4127,2641.8,2640.5,2.65092]
[1723403194271,5.06318,2641.1,2640.5,2.65093]
[1723403194477,5.06318,2641.1,2640.3,4.99566]
[1723403194655,5.06318,2641.1,2640.3,5.30229]
[1723403194656,2.65063,2640.9,2640.3,5.30229]
[1723403194859,2.65063,2640.9,2640.3,2.65114]
[1723403195055,2.65063,2640.9,2640.3,2.916254]
[1723403195448,2.65063,2640.9,2640.3,5.567394]
[1723403195670,2.65063,2640.9,2640.3,2.916254]
[1723403196452,2.65063,2640.9,2640.3,2.65114]
[1723403197466,2.65063,2640.9,2640.3,5.30228]
[1723403197687,5.06316,2641.1,2640.1,3.0]
[1723403197980,5.06316,2641.1,2640.4,2.65106]
[1723403197981,2.4127,2641.1,2640.4,2.65106]
[1723403198291,3.38097,2641.1,2640.2,2.65122]
[1723403198468,3.38097,2641.1,2640.3,3.0]
[1723403198776,6.03146,2641.1,2640.4,2.65109]
[1723403198976,6.03146,2641.1,2640.2,2.65127]
[1723403198977,3.38097,2641.1,2640.2,2.65127]
[1723403199283,2.65077,2640.8,2640.2,2.65127]
[1723403199585,2.65077,2640.8,2640.2,5.30252]
[1723403199784,2.65077,2640.8,2640.2,5.3025]
[1723403200317,2.65077,2640.8,2640.3,2.6512]
[1723403200887,2.65077,2640.8,2640.2,2.64967679]
[1723403201097,2.65077,2640.8,2640.2,3.44909447]
[1723403201391,2.65056,2641.0,2640.3,2.65114]
[1723403202283,0.04638372,2640.9,2640.3,2.65114]
[1723403203106,0.04638372,2640.9,2640.4,2.65106]
[1723403204309,2.69700372,2640.9,2640.3,2.65114]
[1723403205121,2.65072,2640.8,2640.3,2.65114]
[1723403205620,0.04621954,2640.7,2640.3,2.65114]
[1723403205825,2.65072,2640.8,2640.3,2.65114]
[1723403206225,2.65072,2640.8,2640.2,0.79941768]
[1723403206226,0.04613744,2640.6,2640.2,0.79941768]
[1723403206380,2.4127,2640.5,2639.5,2.65195]
[1723403206581,2.65147,2640.1,2639.5,2.65195]
[1723403206778,5.30255,2640.3,2639.6,2.65191]
[1723403207026,5.06377,2640.5,2639.7,2.65175]
[1723403207322,0.04554906,2640.2,2639.9,2.6516]
[1723403207475,6.297147,2640.5,2639.9,2.6516]
[1723403207675,0.04546694,2640.1,2639.7,2.65173]
[1723403207912,2.65117,2640.4,2639.7,2.916903]
[1723403208112,0.0453848,2640.0,2639.7,2.65173]
[1723403208315,2.65132,2640.2,2639.7,2.65173]
[1723403208522,0.04530266,2639.9,2639.5,2.65195]
[1723403208730,2.65141,2640.1,2639.5,3.451595]
[1723403208885,0.04367386,2639.8,2639.5,3.451595]
[1723403209085,2.65141,2640.1,2639.5,3.451595]
[1723403209320,0.04342147,2639.7,2639.4,2.65211]
[1723403209478,2.65154,2640.0,2639.5,2.65201]
[1723403209678,0.0433393,2639.6,2639.5,2.65201]
[1723403209911,2.65142,2640.1,2639.5,2.65201]
[1723403210221,9.92137,2640.2,2639.5,5.30402]
[1723403210222,0.0433393,2639.6,2639.5,5.30402]
[1723403210423,0.04366793,2640.0,2639.7,2.65175]
[1723403210583,7.27,2640.2,2639.7,2.65175]
[1723403211011,0.0435707,2640.1,2639.8,2.65171]
[1723403211718,0.0435707,2640.1,2639.7,5.30347]
[1723403211882,0.0435707,2640.1,2639.7,2.65173]
[1723403212506,0.0435707,2640.1,2639.8,2.6517]
[1723403212878,0.0435707,2640.1,2639.8,5.30335]
[1723403213093,0.0435707,2640.1,2640.0,2.65151]
[1723403213617,0.0435707,2640.1,2639.8,5.30329]
[1723403214180,0.0435707,2640.1,2640.0,2.65151]
[1723403214381,9.6827,2640.5,2640.0,2.65151]
[1723403214629,0.04381709,2640.4,2640.0,2.65151]
[1723403216503,0.04381709,2640.4,2639.8,5.833589]
[1723403216928,0.04381709,2640.4,2639.9,2.65159]
[1723403218231,2.69493709,2640.4,2639.9,2.65161]
[1723403220352,0.04381709,2640.4,2640.0,2.65142]
[1723403220557,2.65097,2640.6,2640.0,2.65142]
[1723403220735,0.04359148,2640.3,2640.0,2.65142]
[1723403220918,2.65097,2640.6,2640.0,2.65142]
[1723403221245,2.3424,2640.9,2640.6,2.65083]
[1723403221420,0.04251781,2640.8,2640.7,0.265083]
[1723403221670,2.65016,2641.4,2640.8,2.65066]
[1723403221818,2.65016,2641.4,2640.8,0.63995443]
[1723403222341,4.99241,2641.5,2641.0,2.6505]
[1723403222714,2.65016,2641.4,2640.8,3.21485825]
[1723403223183,2.65026,2641.3,2640.8,3.21490825]
[1723403223764,2.65036,2641.2,2640.8,0.56422825]
[1723403223916,2.65097,2640.6,2639.9,0.5833559]
[1723403224119,2.3424,2640.6,2639.7,2.65172]
[1723403224352,4.99337,2640.6,2639.8,0.265172]
[1723403224531,2.65122,2640.3,2639.8,0.265172]
[1723403224751,2.65111,2640.4,2639.8,0.265172]
[1723403225053,2.65122,2640.3,2639.8,0.265172]
[1723403227031,2.65111,2640.4,2639.8,0.265172]
[1723403227259,2.65111,2640.4,2639.9,2.65154]
[1723403227573,2.65111,2640.4,2639.9,3.08359985]
[1723403227775,2.65122,2640.3,2639.9,0.43205985]
[1723403227977,2.65122,2640.3,2639.8,0.265172]
[1723403228144,2.65111,2640.4,2639.8,2.916882]
[1723403230138,2.65111,2640.4,2639.9,2.65155]
[1723403230350,2.65102,2640.5,2639.9,2.65155]
[1723403230553,2.65102,2640.5,2639.9,5.3031]
[1723403230754,2.65102,2640.5,2639.9,3.2083772]
[1723403231940,2.65102,2640.5,2639.9,5.3031]
[1723403232138,2.65102,2640.5,2640.0,2.6515]
[1723403232339,0.04242599,2640.4,2640.0,2.6515]
[1723403232572,0.04242599,2640.4,2639.9,2.65155]
[1723403232777,0.04242599,2640.4,2640.1,2.65133]
[1723403233075,0.04234386,2640.3,2640.1,2.65133]
[1723403233276,7.27,2640.6,2640.1,2.65133]
[1723403233479,0.04207008,2640.2,2640.1,2.65133]
[1723403233642,7.27,2640.6,2640.1,3.412709]
[1723403233843,0.04231645,2640.5,2640.1,2.65133]
[1723403235790,0.04231645,2640.5,2640.1,5.30268]
[1723403236342,0.04231645,2640.5,2640.1,2.65133]
[1723403236569,0.04231645,2640.5,2640.1,5.30268]
[1723403236877,0.04231645,2640.5,2640.1,5.30269]
[1723403237754,0.04231645,2640.5,2639.6,2.65185]
[1723403237755,2.6514,2640.2,2639.6,2.65185]
[1723403237946,2.65148,2640.1,2639.5,2.65195]
[1723403238139,2.69351887,2640.1,2639.5,2.65195]
[1723403238574,2.65174,2639.8,2639.3,2.65213]
[1723403238779,4.90904,2639.8,2639.3,2.65213]
[1723403239094,2.69353027,2639.7,2639.1,2.65234]
[1723403239542,2.69353027,2639.7,2639.1,3.148664]
[1723403239747,0.04171027,2639.7,2639.3,2.65214]
[1723403239955,0.04171027,2639.7,2639.3,5.3043]
[1723403240153,5.17812189,2640.1,2639.5,2.652]
[1723403240489,22.2013,2640.3,2639.7,2.65173]
[1723403240645,0.04188185,2640.0,2639.7,2.65173]
[1723403240863,24.8526,2640.3,2639.7,2.65173]
[1723403241053,0.0417997,2639.9,2639.7,2.65173]
[1723403241247,2.65132,2640.2,2639.5,7.61478]
[1723403241454,0.04171755,2639.8,2639.5,7.61478]
[1723403241662,2.65142,2640.1,2639.6,2.65191]
[1723403241872,0.04163539,2639.7,2639.6,2.65191]
[1723403242078,2.65142,2640.1,2639.6,2.65191]
[1723403242391,0.04163539,2639.7,2639.6,2.65191]
[1723403242549,2.65142,2640.1,2639.6,2.65191]
[1723403242748,0.04163539,2639.7,2639.6,2.65191]
[1723403242991,2.65142,2640.1,2639.6,2.65191]
[1723403243481,0.04188185,2640.0,2639.6,2.65191]
[1723403244194,0.04188185,2640.0,2639.7,2.65181]
[1723403244553,15.5835,2640.3,2639.7,2.65181]
[1723403244765,0.0417997,2639.9,2639.7,2.65181]
[1723403245057,0.04171755,2639.8,2639.7,2.65181]
[1723403245250,15.58347,2640.3,2639.7,2.65181]
[1723403245611,0.04171755,2639.8,2639.5,2.65192]
[1723403245892,0.04155449,2639.7,2639.5,2.65192]
[1723403246057,2.6514,2640.2,2639.5,2.65192]
[1723403246252,0.04147232,2639.6,2639.5,2.65192]
[1723403246587,5.30289,2640.1,2639.5,2.65192]
[1723403246787,0.04147232,2639.6,2639.5,2.65192]
[1723403247103,2.65142,2640.1,2639.5,2.65192]
[1723403247256,0.04147232,2639.6,2639.5,2.65192]
[1723403247598,2.65142,2640.1,2639.5,3.182363]
[1723403247762,5.30292,2640.1,2639.5,2.65196]
[1723403247952,0.04180095,2640.0,2639.5,2.65196]
[1723403249503,0.04180095,2640.0,2639.4,2.65211]
[1723403249801,5.09501,2639.9,2639.2,7.61539]
[1723403250105,0.04163665,2639.8,2639.3,2.65219]
[1723403250407,0.04163665,2639.8,2639.4,2.65204]
[1723403250604,0.04163665,2639.8,2639.5,2.652]
[1723403250959,5.30293,2640.1,2639.5,2.652]
[1723403251164,0.04155449,2639.7,2639.2,0.8111714]
[1723403251474,0.04155449,2639.7,2639.1,2.65232]
[1723403251475,0.04147232,2639.6,2639.1,2.65232]
[1723403251864,5.09507,2639.8,2639.2,2.65225]
[1723403252065,0.0412763,2639.5,2639.1,2.65232]
[1723403252290,2.65183,2639.7,2639.0,2.65249]
[1723403252488,2.65183,2639.7,2638.9,4.91955]
[1723403252489,0.04119413,2639.4,2639.1,2.65241]
[1723403252694,5.30373,2639.7,2639.1,2.65241]
[1723403252887,0.04106699,2639.3,2639.1,5.30477]
[1723403253202,5.30371,2639.7,2639.1,2.65236]
[1723403253388,0.0409848,2639.2,2639.1,2.65236]
[1723403253599,9.92183,2639.7,2639.1,3.182851]
[1723403253792,0.0409848,2639.2,2639.1,2.65236]
[1723403253991,12.5737,2639.7,2639.1,2.65236]
[1723403254507,2.69323353,2639.6,2639.1,2.65236]
[1723403255096,0.04131353,2639.6,2639.1,5.30472]
[1723403255622,0.04131353,2639.6,2639.2,2.65231]
[1723403256087,0.04131353,2639.6,2639.1,2.65236]
[1723403256602,0.04131353,2639.6,2639.1,5.30471]
[1723403256819,0.04131353,2639.6,2639.1,5.835181]
[1723403258883,0.04131353,2639.6,2639.0,2.65249]
[1723403259083,0.04131353,2639.6,2639.1,2.65239]
[1723403259423,2.69323353,2639.6,2639.1,2.65239]
[1723403259582,0.04131353,2639.6,2639.1,5.30474]
[1723403259782,0.04131353,2639.6,2639.2,2.65231]
[1723403261022,0.04131353,2639.6,2639.3,2.65216]
[1723403261229,0.04131353,2639.6,2639.4,2.65205]
[1723403261898,0.04131353,2639.6,2639.3,2.65219]
[1723403262231,0.04131353,2639.6,2639.4,2.65206]
[1723403264791,0.04131353,2639.6,2639.3,2.65219]
[1723403265196,2.65183,2639.7,2639.2,2.65231]
[1723403265393,0.04111149,2639.5,2639.2,2.65231]
[1723403265634,0.04119366,2639.6,2639.2,2.65231]
[1723403266127,0.04119366,2639.6,2639.0,2.65246]
[1723403266326,2.69313366,2639.6,2639.0,2.65246]
[1723403266631,2.69313366,2639.6,2638.5,8.64589635]
[1723403266632,2.65248,2639.1,2638.5,0.59341635]
[1723403266790,2.65252,2639.0,2638.5,3.24636635]
[1723403266992,2.69322054,2639.0,2638.5,2.65295]
[1723403267706,2.69322054,2639.0,2638.3,2.65315]
[1723403267707,2.4236,2638.9,2638.3,2.65315]
[1723403267909,5.11676446,2638.9,2638.3,5.30631]
[1723403268106,2.46407446,2638.9,2638.3,2.65314]
[1723403268444,2.65303,2638.5,2638.0,0.59360399]
[1723403268740,2.4236,2638.4,2637.9,2.65356]
[1723403269029,2.46358537,2638.4,2637.9,2.65356]
[1723403269247,2.46358537,2638.4,2638.1,2.65336]
[1723403269450,0.03998537,2638.4,2638.3,2.65322]
[1723403269728,5.4236,2639.0,2638.5,2.653]
[1723403270294,5.4236,2639.0,2638.3,5.30635]
[1723403270625,8.07612,2639.0,2638.4,2.6531]
[1723403270828,8.07612,2639.0,2638.3,2.65313]
[1723403270829,5.4236,2639.0,2638.5,2.65301]
[1723403271193,8.07615,2639.0,2638.3,3.1828266]
[1723403271906,5.4236,2639.0,2638.3,3.1828266]
[1723403272148,0.54236,2638.9,2638.3,2.65313]
[1723403272638,2.65272,2638.8,2638.2,2.918626]
[1723403272999,2.323,2638.6,2638.0,2.6535]
[1723403273202,2.323,2638.6,2637.7,2.4536]
[1723403273398,2.323,2638.6,2637.9,2.65355]
[1723403273611,2.323,2638.6,2638.2,2.65331]
[1723403274546,2.323,2638.6,2638.1,2.65335]
[1723403274708,4.97598,2638.6,2637.9,2.65352]
[1723403274910,2.65313,2638.4,2637.8,0.54536]
[1723403275228,2.323,2638.0,2637.5,2.65394]
[1723403275395,4.97653,2638.0,2637.3,5.30833]
[1723403275598,2.65364,2637.9,2637.3,2.65414]
[1723403276042,4.97653,2638.0,2637.3,2.65414]
[1723403276423,2.323,2638.0,2637.6,2.65386]
[1723403276604,2.323,2638.0,2637.6,2.919216]
[1723403276797,2.323,2638.0,2637.1,8.10799]
[1723403276798,2.65354,2638.0,2637.4,2.65406]
[1723403277031,2.323,2637.9,2637.4,2.65406]
[1723403277402,0.03901502,2637.8,2637.4,2.65406]
[1723403277603,2.69274502,2637.8,2637.2,2.65426]
[1723403277905,0.03901502,2637.8,2637.3,2.65415]
[1723403278130,0.03901502,2637.8,2637.3,3.430351]
[1723403278527,0.03901502,2637.8,2637.4,2.65406]
[1723403280507,2.18974359,2637.8,2637.2,2.65426]
[1723403280711,0.03753622,2637.7,2637.3,2.65416]
[1723403281019,4.9767,2637.9,2637.4,2.65411]
[1723403281225,0.03745393,2637.6,2637.2,2.65424]
[1723403281568,0.03737163,2637.5,2637.0,2.65445]
[1723403281861,4.97713,2637.4,2636.8,2.65467]
[1723403282023,4.97713,2637.4,2636.8,6.20623653]
[1723403282231,2.65435,2637.2,2636.6,2.65488]
[1723403282607,2.69154922,2637.1,2636.6,2.65488]
[1723403282805,0.03711922,2637.1,2636.4,2.6551]
[1723403283059,2.69156922,2637.1,2636.5,2.65502]
[1723403283237,2.323,2637.0,2636.7,2.65482]
[1723403283564,0.0360864,2636.9,2636.7,2.65482]
[1723403283714,2.65417,2637.4,2636.7,2.65482]
[1723403283715,2.323,2637.3,2636.8,2.6547]
[1723403283910,2.323,2637.3,2636.9,2.65457]
[1723403284334,2.323,2637.3,2636.6,2.65486]
[1723403284730,2.323,2637.3,2636.9,2.65462]
[1723403285643,2.323,2637.3,2636.7,2.65475]
[1723403285938,2.323,2637.3,2636.9,2.65455]
[1723403287539,3.0,2637.7,2636.8,0.265475]
[1723403287540,2.3119,2637.6,2636.8,0.265475]
[1723403287741,2.3119,2637.6,2637.0,2.65444]
[1723403287962,2.3119,2637.6,2637.1,2.65442]
[1723403288256,0.03762211,2637.5,2637.1,2.65442]
[1723403288660,0.03762211,2637.5,2637.2,2.65432]
[1723403288943,0.03762211,2637.5,2637.3,3.185024]
[1723403289105,7.27,2637.8,2637.1,2.65438]
[1723403289364,7.27,2637.8,2636.9,2.65454]
[1723403289365,0.03601975,2637.4,2636.9,2.65454]
[1723403289543,2.65398,2637.6,2636.9,2.65454]
[1723403289742,0.03597346,2637.3,2637.0,0.265454]
[1723403289924,2.65398,2637.6,2637.0,2.919914]
[1723403290117,0.03589117,2637.2,2637.0,2.919914]
[1723403290323,2.65398,2637.6,2637.0,2.919914]
[1723403290630,0.03600189,2637.1,2637.0,2.919914]
[1723403290833,2.65398,2637.6,2637.1,2.65442]
[1723403291160,0.036331,2637.5,2637.1,0.8228874]
[1723403291322,2.3119,2637.4,2636.9,2.65454]
[1723403291528,2.34814873,2637.4,2636.9,2.65454]
[1723403291711,2.34814873,2637.4,2637.0,2.919924]
[1723403292041,2.34814873,2637.4,2637.1,2.65441]
[1723403292411,2.34814873,2637.4,2637.0,2.919984]
[1723403293211,2.34814873,2637.4,2637.1,2.6544]
[1723403294025,2.34814873,2637.4,2637.0,0.265454]
[1723403295478,2.34814873,2637.4,2636.7,2.3588]
[1723403295479,2.65425,2637.3,2636.7,2.65476]
[1723403295831,0.03584127,2637.2,2636.7,2.65476]
[1723403296034,2.69017127,2637.2,2636.7,2.65476]
[1723403296544,0.03584127,2637.2,2636.7,2.65476]
[1723403297341,0.03584127,2637.2,2636.5,2.65495]
[1723403297548,2.3062,2636.9,2636.5,2.65495]
[1723403297745,2.3062,2636.9,2636.3,2.65519]